fUSD/lending_fUSD_20260628
["ID","MTS","AMOUNT","RATE_DAILY","PERIOD"]
[426607808,1782661839000,-552.44174359,0.00026435,2]
[426607807,1782661839000,-204.58016172,0.00026435,2]
[426607811,1782661839000,-663.90633533,0.00026435,2]
[426607810,1782661839000,-612.78501062,0.00026435,2]
[426607812,1782661839000,-435.45903718,0.00026435,2]
[426607822,1782661839000,-178.18053159,0.00026438,2]
[426607814,1782661839000,-506.3663941,0.00026438,2]
[426607813,1782661839000,-543.42578999,0.00026435,2]
[426607821,1782661839000,-546.22802889,0.00026438,2]
[426607815,1782661839000,-712.79321231,0.00026438,2]
[426607820,1782661839000,-686.30584187,0.00026438,2]
[426607818,1782661839000,-465.49788029,0.00026438,2]
[426607816,1782661839000,-494.67878957,0.00026438,2]
[426607817,1782661839000,-559.46101159,0.00026438,2]
[426607819,1782661839000,-301.70432951,0.00026438,2]
[426607823,1782661839000,-549.20819332,0.00026438,2]
[426607824,1782661839000,-802.93437774,0.00026438,2]
[426607825,1782661839000,-813.60251803,0.00026438,2]
[426607827,1782661839000,-433.25501841,0.00026438,2]
[426607809,1782661839000,-791.88303875,0.00026435,2]
[426607798,1782661839000,-813.91868131,0.00026435,2]
[426607826,1782661839000,-509.53225891,0.00026438,2]
[426607799,1782661839000,-472.9890193,0.00026435,2]
[426607803,1782661839000,-394.31387541,0.00026435,2]
[426607762,1782661839000,-638.42435316,0.0002643,2]
[426607766,1782661839000,-319.29644036,0.0002643,2]
[426607772,1782661839000,-225.60141123,0.0002643,2]
[426607775,1782661839000,-177.06887181,0.0002643,2]
[426607774,1782661839000,-222.28753369,0.0002643,2]
[426607778,1782661839000,-311.72619887,0.0002643,2]
[426607780,1782661839000,-500.0,0.00026434,2]
[426607783,1782661839000,-500.0,0.00026434,2]
[426607784,1782661839000,-500.0,0.00026434,2]
[426607782,1782661839000,-500.0,0.00026434,2]
[426607779,1782661839000,-382.1798092,0.0002643,2]
[426607781,1782661839000,-500.0,0.00026434,2]
[426607763,1782661839000,-159.68448117,0.0002643,2]
[426607773,1782661839000,-219.88939533,0.0002643,2]
[426607777,1782661839000,-173.07526783,0.0002643,2]
[426607793,1782661839000,-383.35189707,0.00026435,2]
[426607790,1782661839000,-331.62360172,0.00026435,2]
[426607794,1782661839000,-472.88161924,0.00026435,2]
[426607791,1782661839000,-464.20005865,0.00026435,2]
[426607792,1782661839000,-223.14169338,0.00026435,2]
[426607795,1782661839000,-460.25938917,0.00026435,2]
[426607788,1782661839000,-228.54514201,0.00026435,2]
[426607787,1782661839000,-598.73840409,0.00026435,2]
[426607785,1782661839000,-500.0,0.00026434,2]
[426607796,1782661839000,-746.92634896,0.00026435,2]
[426607797,1782661839000,-650.48685948,0.00026435,2]
[426607789,1782661839000,-176.3200614,0.00026435,2]
[426607857,1782661840000,-528.0944467,0.00027397,2]
[426607868,1782661840000,-1857.37327384,0.00027552,2]
[426607860,1782661840000,-464.48760709,0.00027397,2]
[426607865,1782661840000,-352.06296446,0.00027397,2]
[426607861,1782661840000,-204.6863108,0.00027397,2]
[426607863,1782661840000,-614.0589324,0.00027397,2]
[426607862,1782661840000,-409.3726216,0.00027397,2]
[426607859,1782661840000,-232.24380354,0.00027397,2]
[426607867,1782661840000,-500.0,0.000275,7]
[426607858,1782661840000,-704.12592893,0.00027397,2]
[426607871,1782661840000,-1064.24590978,0.00027832,2]
[426607866,1782661840000,-4181.72,0.000274,2]
[426607870,1782661840000,-1857.37327384,0.00027826,2]
[426607869,1782661840000,-518.5,0.00027826,2]
[426607877,1782661840000,-1016.58290382,0.00027837,2]
[426607849,1782661840000,-1857.37327384,0.00027278,2]
[426607872,1782661840000,-1120.38952344,0.00027837,2]
[426607875,1782661840000,-919.17751593,0.00027837,2]
[426607878,1782661840000,-311.874209,0.000279,7]
[426607874,1782661840000,-1101.90898068,0.00027837,2]
[426607876,1782661840000,-1080.63840672,0.00027837,2]
[426607873,1782661840000,-975.73028922,0.00027837,2]
[426607879,1782661840000,-1128.49654137,0.00027901,2]
[426607864,1782661840000,-176.03148223,0.00027397,2]
[426607853,1782661840000,-300.0,0.00027397,2]
[426607848,1782661840000,-500.0,0.00027278,2]
[426607852,1782661840000,-1500.0,0.00027397,2]
[426607880,1782661840000,-300.36277934,0.00027945,5]
[426607829,1782661840000,-199.02243494,0.00026438,2]
[426607828,1782661840000,-485.7577407,0.00026438,2]
[426607833,1782661840000,-213.0,0.00026695,2]
[426607834,1782661840000,-302.46,0.00026695,2]
[426607831,1782661840000,-511.01339825,0.00026442,2]
[426607832,1782661840000,-150.0,0.00026695,2]
[426607830,1782661840000,-322.63337688,0.00026442,2]
[426607847,1782661840000,-174.3991004,0.00027278,2]
[426607836,1782661840000,-300.36277934,0.00026849,4]
[426607846,1782661840000,-150.0,0.00027225,5]
[426607850,1782661840000,-2678.81,0.00027315,2]
[426607835,1782661840000,-161.03860373,0.00026695,2]
[426607842,1782661840000,-765.98126328,0.00026996,2]
[426607843,1782661840000,-900.5320056,0.00026996,2]
[426607840,1782661840000,-813.10857435,0.00026996,2]
[426607841,1782661840000,-918.2574839,0.00026996,2]
[426607837,1782661840000,-798.03044145,0.00026991,2]
[426607845,1782661840000,-3607.3863016,0.00027094,2]
[426607844,1782661840000,-890.99151539,0.00026999,2]
[426607856,1782661840000,-2018.31,0.00027397,10]
[426607855,1782661840000,-364.69,0.00027397,2]
[426607854,1782661840000,-530.85,0.00027397,2]
[426607851,1782661840000,-241.07510214,0.00027397,7]
[426607838,1782661840000,-886.87159148,0.00026991,2]
[426607839,1782661840000,-933.6579362,0.00026996,2]
[426607882,1782661840000,-1857.37327384,0.000281,2]
[426607889,1782661840000,-3559.0,0.00028586,2]
[426607917,1782661840000,-300.36277934,0.00029041,5]
[426607914,1782661840000,-508.85,0.00029,2]
[426607918,1782661840000,-4181.72,0.00029089,2]
[426607919,1782661840000,-1184.64667469,0.00029094,2]
[426607912,1782661840000,-210.96162956,0.00028941,2]
[426607916,1782661840000,-24384.23,0.00029009,2]
[426607913,1782661840000,-500.0,0.00029,2]
[426607915,1782661840000,-186.95,0.00029,7]
[426607920,1782661840000,-1088.098295,0.00029094,2]
[426607921,1782661840000,-1307.12111068,0.00029099,2]
[426607925,1782661840000,-693.16096788,0.00029222,7]
[426607910,1782661840000,-520.16865279,0.00028922,2]
[426607929,1782661840000,-153.0,0.00029695,30]
[426607930,1782661840000,-157.0,0.00029695,30]
[426607924,1782661840000,-1857.37327384,0.00029196,2]
[426607927,1782661840000,-1128.49654137,0.00029467,2]
[426607923,1782661840000,-1260.74480784,0.00029099,2]
[426607931,1782661840000,-370.0,0.00029695,30]
[426607928,1782661840000,-1857.37327384,0.0002947,2]
[426607932,1782661840000,-315.0,0.00029695,30]
[426607934,1782661840000,-155.0,0.00029697,30]
[426607935,1782661840000,-189.0,0.00029697,30]
[426607933,1782661840000,-153.0,0.00029697,30]
[426607883,1782661840000,-292.833,0.00028104,2]
[426607926,1782661840000,-500.0,0.00029288,2]
[426607911,1782661840000,-1857.37327384,0.00028922,2]
[426607922,1782661840000,-1138.35200409,0.00029099,2]
[426607904,1782661840000,-153.0,0.00028697,30]
[426607901,1782661840000,-155.0,0.00028697,30]
[426607888,1782661840000,-3607.3863016,0.00028552,2]
[426607884,1782661840000,-537.6845,0.00028374,2]
[426607885,1782661840000,-1857.37327384,0.00028374,2]
[426607886,1782661840000,-180.20999459,0.00028422,2]
[426607887,1782661840000,-150.0,0.00028534,5]
[426607899,1782661840000,-315.0,0.00028695,30]
[426607897,1782661840000,-157.0,0.00028695,30]
[426607891,1782661840000,-282.0,0.00028586,2]
[426607894,1782661840000,-1857.37327384,0.00028648,2]
[426607890,1782661840000,-1277.0,0.00028586,2]
[426607900,1782661840000,-153.0,0.00028697,30]
[426607881,1782661840000,-880.15741116,0.00027958,2]
[426607906,1782661840000,-154.0,0.00028699,30]
[426607896,1782661840000,-153.0,0.00028695,30]
[426607902,1782661840000,-189.0,0.00028697,30]
[426607903,1782661840000,-158.0,0.00028697,30]
[426607907,1782661840000,-156.0,0.00028699,30]
[426607908,1782661840000,-154.21593943,0.00028699,30]
[426607909,1782661840000,-1056.18889339,0.00028799,2]
[426607893,1782661840000,-3650.0,0.00028586,2]
[426607898,1782661840000,-370.0,0.00028695,30]
[426607892,1782661840000,-216.0,0.00028586,2]
[426607895,1782661840000,-892.94,0.00028685,2]
[426607905,1782661840000,-2482.0,0.00028697,30]
[426607971,1782661841000,-200.0,0.0003,2]
[426607973,1782661841000,-10385.94496012,0.0003,2]
[426607975,1782661841000,-500.0,0.00030011,2]
[426607974,1782661841000,-3607.3863016,0.00030009,2]
[426607970,1782661841000,-200.0,0.0003,2]
[426607958,1782661841000,-12499.96,0.0003,2]
[426607969,1782661841000,-200.0,0.0003,2]
[426607968,1782661841000,-225.27208451,0.0003,5]
[426607972,1782661841000,-200.0,0.0003,2]
[426607976,1782661841000,-500.0,0.00030011,2]
[426607966,1782661841000,-150.0,0.0003,2]
[426607967,1782661841000,-200.0,0.0003,2]
[426607978,1782661841000,-500.0,0.00030011,2]
[426607984,1782661841000,-892.94,0.00030055,2]
[426607979,1782661841000,-500.0,0.00030011,2]
[426607980,1782661841000,-500.0,0.00030011,2]
[426607985,1782661841000,-1232.22037562,0.00030061,2]
[426607991,1782661841000,-500.0,0.00030136,2]
[426607987,1782661841000,-500.0,0.00030136,2]
[426607982,1782661841000,-150.0,0.00030011,2]
[426607981,1782661841000,-381.91579154,0.00030011,2]
[426607983,1782661841000,-1857.37327384,0.00030018,2]
[426607986,1782661841000,-500.0,0.00030136,2]
[426607989,1782661841000,-500.0,0.00030136,2]
[426607990,1782661841000,-500.0,0.00030136,2]
[426607977,1782661841000,-500.0,0.00030011,2]
[426607956,1782661841000,-500.0,0.00029999,7]
[426607936,1782661841000,-158.0,0.00029697,30]
[426607964,1782661841000,-12500.0,0.0003,2]
[426607937,1782661841000,-153.0,0.00029697,30]
[426607942,1782661841000,-200.0,0.00029858,2]
[426607940,1782661841000,-156.0,0.00029699,30]
[426607938,1782661841000,-2482.0,0.00029697,30]
[426607941,1782661841000,-1857.37327384,0.00029744,2]
[426607939,1782661841000,-154.0,0.00029699,30]
[426607947,1782661841000,-3340.3272912,0.000299,2]
[426607945,1782661841000,-3340.32729134,0.000299,2]
[426607944,1782661841000,-1474.9609,0.000299,2]
[426607953,1782661841000,-3340.3272912,0.000299,2]
[426607943,1782661841000,-500.0,0.00029899,7]
[426607948,1782661841000,-3340.3272912,0.000299,2]
[426607951,1782661841000,-3340.3272912,0.000299,2]
[426607946,1782661841000,-3340.3272912,0.000299,2]
[426607950,1782661841000,-3340.3272912,0.000299,2]
[426607949,1782661841000,-3340.3272912,0.000299,2]
[426607952,1782661841000,-3340.3272912,0.000299,2]
[426607954,1782661841000,-4181.72,0.0002999,2]
[426607965,1782661841000,-12499.99,0.0003,2]
[426607957,1782661841000,-500.0,0.00029999,2]
[426607961,1782661841000,-12499.98,0.0003,2]
[426607962,1782661841000,-12499.98,0.0003,2]
[426607955,1782661841000,-4181.72,0.0002999,2]
[426607963,1782661841000,-12500.0,0.0003,2]
[426607959,1782661841000,-12499.98,0.0003,2]
[426607960,1782661841000,-12500.0,0.0003,2]
[426607996,1782661841000,-500.0,0.00030136,2]
[426608001,1782661841000,-500.0,0.00030136,2]
[426607994,1782661841000,-500.0,0.00030136,2]
[426608030,1782661841000,-155.0,0.00030697,30]
[426608025,1782661841000,-153.0,0.00030695,30]
[426608027,1782661841000,-370.0,0.00030695,30]
[426608022,1782661841000,-1857.37327384,0.00030566,2]
[426608034,1782661841000,-2482.0,0.00030697,30]
[426608026,1782661841000,-157.0,0.00030695,30]
[426608024,1782661841000,-1955.154,0.00030666,26]
[426608029,1782661841000,-153.0,0.00030697,30]
[426608031,1782661841000,-189.0,0.00030697,30]
[426608032,1782661841000,-158.0,0.00030697,30]
[426608035,1782661841000,-154.0,0.00030699,30]
[426608036,1782661841000,-156.0,0.00030699,30]
[426608042,1782661841000,-350.0,0.00030852,2]
[426608038,1782661841000,-1230.98,0.0003075,2]
[426608041,1782661841000,-1857.37327384,0.0003084,2]
[426608039,1782661841000,-225.0,0.00030771,2]
[426608037,1782661841000,-229.36552854,0.00030746,30]
[426608040,1782661841000,-150.42569425,0.0003081,11]
[426608043,1782661841000,-3340.3272912,0.00030893,2]
[426608045,1782661841000,-442.0,0.00030938,2]
[426608046,1782661841000,-1000.0,0.00031,7]
[426608047,1782661841000,-1128.49654137,0.00031033,2]
[426608049,1782661841000,-150.42569425,0.00031106,13]
[426608048,1782661841000,-229.36552854,0.0003105,30]
[426607988,1782661841000,-500.0,0.00030136,2]
[426608033,1782661841000,-153.0,0.00030697,30]
[426608028,1782661841000,-315.0,0.00030695,30]
[426608044,1782661841000,-536.0,0.00030903,2]
[426608015,1782661841000,-12500.0,0.0003025,2]
[426608023,1782661841000,-150.42569425,0.00030568,9]
[426607992,1782661841000,-500.0,0.00030136,2]
[426607995,1782661841000,-500.0,0.00030136,2]
[426607997,1782661841000,-500.0,0.00030136,2]
[426607993,1782661841000,-500.0,0.00030136,2]
[426608000,1782661841000,-500.0,0.00030136,2]
[426608010,1782661841000,-150.42569429,0.00030137,2]
[426607999,1782661841000,-500.0,0.00030136,2]
[426608002,1782661841000,-500.0,0.00030136,2]
[426608005,1782661841000,-500.0,0.00030136,2]
[426608007,1782661841000,-364.69,0.00030137,2]
[426608006,1782661841000,-189.78051296,0.00030136,2]
[426608004,1782661841000,-168.03474628,0.00030136,7]
[426607998,1782661841000,-500.0,0.00030136,2]
[426608009,1782661841000,-436.95764762,0.00030137,2]
[426608003,1782661841000,-190.43950815,0.00030136,2]
[426608021,1782661841000,-12500.0,0.000305,2]
[426608016,1782661841000,-12500.0,0.0003025,2]
[426608019,1782661841000,-150.42569425,0.00030379,8]
[426608017,1782661841000,-1857.37327384,0.00030292,2]
[426608018,1782661841000,-788.05,0.00030372,2]
[426608014,1782661841000,-150.42569425,0.00030245,6]
[426608012,1782661841000,-150.42569425,0.00030164,4]
[426608013,1782661841000,-3340.3272912,0.00030212,2]
[426608020,1782661841000,-229.36552854,0.00030441,30]
[426608011,1782661841000,-229.36552854,0.00030137,30]
[426608008,1782661841000,-218.47882381,0.00030137,2]
[426608074,1782661842000,-153.0,0.00031697,30]
[426608075,1782661842000,-2482.0,0.00031697,30]
[426608076,1782661842000,-154.0,0.00031699,30]
[426608077,1782661842000,-156.0,0.00031699,30]
[426608080,1782661842000,-167.13634785,0.000317,2]
[426608078,1782661842000,-167.13634786,0.000317,2]
[426608079,1782661842000,-167.13634785,0.000317,2]
[426608073,1782661842000,-158.0,0.00031697,30]
[426608081,1782661842000,-276.73267056,0.000317,2]
[426608089,1782661842000,-229.36552854,0.00031963,30]
[426608082,1782661842000,-276.73267055,0.000317,2]
[426608087,1782661842000,-150.42569425,0.0003186,17]
[426608088,1782661842000,-1857.37327384,0.00031936,2]
[426608085,1782661842000,-2054.5489389,0.0003173,2]
[426608090,1782661842000,-13444.54555023,0.0003199,2]
[426608086,1782661842000,-2054.5489389,0.00031856,2]
[426608092,1782661842000,-2054.5489389,0.00031992,2]
[426608072,1782661842000,-189.0,0.00031697,30]
[426608091,1782661842000,-11291.45444977,0.0003199,2]
[426608083,1782661842000,-276.73267055,0.000317,2]
[426608070,1782661842000,-153.0,0.00031697,30]
[426608054,1782661842000,-2054.5489389,0.00031346,2]
[426608067,1782661842000,-157.0,0.00031695,30]
[426608096,1782661842000,-500.0,0.00032203,2]
[426608050,1782661842000,-1857.37327384,0.00031114,2]
[426608056,1782661842000,-1857.37327384,0.00031388,2]
[426608052,1782661842000,-2054.5489389,0.00031269,2]
[426608051,1782661842000,-2054.5489389,0.0003122,2]
[426608053,1782661842000,-2054.5489389,0.00031304,2]
[426608058,1782661842000,-150.42569425,0.00031456,15]
[426608055,1782661842000,-229.36552854,0.00031355,30]
[426608057,1782661842000,-2054.5489389,0.00031419,2]
[426608062,1782661842000,-282.0,0.00031586,2]
[426608059,1782661842000,-3607.3863016,0.00031467,2]
[426608061,1782661842000,-1277.0,0.00031586,2]
[426608066,1782661842000,-153.0,0.00031695,30]
[426608068,1782661842000,-370.0,0.00031695,30]
[426608060,1782661842000,-3340.3272912,0.00031575,2]
[426608064,1782661842000,-229.36552854,0.00031659,30]
[426608063,1782661842000,-3650.0,0.00031586,2]
[426608065,1782661842000,-1857.37327384,0.00031662,2]
[426608069,1782661842000,-315.0,0.00031695,30]
[426608071,1782661842000,-155.0,0.00031697,30]
[426608094,1782661842000,-500.0,0.00032202,2]
[426608098,1782661842000,-1857.37327384,0.0003221,2]
[426608095,1782661842000,-500.0,0.00032203,2]
[426608126,1782661842000,-153.0,0.00032697,30]
[426608120,1782661842000,-370.0,0.00032695,30]
[426608125,1782661842000,-158.0,0.00032697,30]
[426608123,1782661842000,-155.0,0.00032697,30]
[426608121,1782661842000,-315.0,0.00032695,30]
[426608124,1782661842000,-189.0,0.00032697,30]
[426608127,1782661842000,-2482.0,0.00032697,30]
[426608128,1782661842000,-154.0,0.00032699,30]
[426608130,1782661842000,-2054.5489389,0.00032722,2]
[426608137,1782661842000,-8931.1904913,0.00033,7]
[426608138,1782661842000,-2054.5489389,0.00033066,2]
[426608132,1782661842000,-150.42569425,0.00032829,21]
[426608131,1782661842000,-2054.5489389,0.00032828,2]
[426608134,1782661842000,-229.36552854,0.00032877,30]
[426608129,1782661842000,-156.0,0.00032699,30]
[426608139,1782661842000,-226.61081206,0.00033123,120]
[426608133,1782661842000,-364.69,0.00032877,2]
[426608136,1782661842000,-3340.3272912,0.00032939,2]
[426608140,1782661842000,-150.0,0.00033123,120]
[426608122,1782661842000,-153.0,0.00032697,30]
[426608119,1782661842000,-157.0,0.00032695,30]
[426608135,1782661842000,-3607.3863016,0.00032924,2]
[426608115,1782661842000,-229.36552854,0.00032572,30]
[426608118,1782661842000,-153.0,0.00032695,30]
[426608100,1782661842000,-2054.5489389,0.00032226,2]
[426608097,1782661842000,-284.33301511,0.00032203,2]
[426608093,1782661842000,-2054.5489389,0.00032098,2]
[426608099,1782661842000,-2054.5489389,0.00032215,2]
[426608101,1782661842000,-3206.44,0.00032232,7]
[426608112,1782661842000,-500.0,0.00032418,120]
[426608104,1782661842000,-9648.09,0.00032232,7]
[426608110,1782661842000,-2054.5489389,0.00032357,2]
[426608108,1782661842000,-150.42569425,0.00032318,19]
[426608102,1782661842000,-520.11,0.00032232,7]
[426608109,1782661842000,-2054.5489389,0.00032344,2]
[426608103,1782661842000,-922.3,0.00032232,7]
[426608106,1782661842000,-3340.3272912,0.00032257,2]
[426608107,1782661842000,-229.36552854,0.00032268,30]
[426608105,1782661842000,-212.94,0.00032232,7]
[426608114,1782661842000,-2054.5489389,0.00032489,2]
[426608116,1782661842000,-1128.49654137,0.00032599,2]
[426608113,1782661842000,-1857.37327397,0.00032484,2]
[426608111,1782661842000,-500.0,0.00032418,120]
[426608117,1782661842000,-2054.5489389,0.00032658,2]
[426608171,1782661843000,-156.0,0.00033699,30]
[426608184,1782661843000,-229.36552854,0.00034094,30]
[426608175,1782661843000,-169.95810905,0.0003379,30]
[426608186,1782661843000,-158.91,0.000343,30]
[426608178,1782661843000,-500.0,0.00033982,120]
[426608170,1782661843000,-2482.0,0.00033697,30]
[426608177,1782661843000,-304.26545713,0.00033982,7]
[426608169,1782661843000,-153.0,0.00033697,30]
[426608168,1782661843000,-158.0,0.00033697,30]
[426608176,1782661843000,-695.34,0.00033955,7]
[426608179,1782661843000,-150.42569425,0.00034014,24]
[426608183,1782661843000,-785.0,0.00034028,2]
[426608188,1782661843000,-3607.3863016,0.00034382,2]
[426608181,1782661843000,-785.0,0.00034028,2]
[426608185,1782661843000,-1128.49654137,0.00034165,2]
[426608182,1782661843000,-785.0,0.00034028,2]
[426608187,1782661843000,-3340.3272912,0.00034303,2]
[426608198,1782661843000,-501.0,0.00034401,2]
[426608197,1782661843000,-8931.1904913,0.000344,7]
[426608191,1782661843000,-785.0,0.00034398,2]
[426608189,1782661843000,-501.0,0.00034397,2]
[426608193,1782661843000,-785.0,0.00034398,2]
[426608196,1782661843000,-1500.0,0.000344,7]
[426608192,1782661843000,-785.0,0.00034398,2]
[426608173,1782661843000,-300.0,0.000337,10]
[426608180,1782661843000,-785.0,0.00034028,2]
[426608172,1782661843000,-158.91,0.000337,30]
[426608146,1782661843000,-286.07627647,0.00033276,2]
[426608163,1782661843000,-1000.0,0.00033697,2]
[426608141,1782661843000,-2054.5489389,0.00033131,2]
[426608145,1782661843000,-340.90404,0.000332,7]
[426608143,1782661843000,-2054.5489389,0.00033156,2]
[426608142,1782661843000,-189.2720017,0.00033156,2]
[426608144,1782661843000,-229.36552854,0.00033181,30]
[426608194,1782661843000,-785.0,0.00034398,2]
[426608148,1782661843000,-150.42569425,0.00033394,23]
[426608149,1782661843000,-229.36552854,0.00033486,30]
[426608147,1782661843000,-200.0,0.00033278,10]
[426608151,1782661843000,-3340.3272912,0.00033621,2]
[426608161,1782661843000,-1133.05406034,0.00033696,2]
[426608152,1782661843000,-250.0,0.0003365,7]
[426608174,1782661843000,-229.36552854,0.0003379,30]
[426608150,1782661843000,-200.0,0.000336,10]
[426608154,1782661843000,-500.0,0.00033669,2]
[426608156,1782661843000,-688.0,0.0003367,5]
[426608155,1782661843000,-275591.0,0.0003367,30]
[426608158,1782661843000,-165.0,0.00033695,30]
[426608160,1782661843000,-315.0,0.00033695,30]
[426608157,1782661843000,-153.0,0.00033695,30]
[426608159,1782661843000,-370.0,0.00033695,30]
[426608162,1782661843000,-226.61081206,0.00033696,2]
[426608166,1782661843000,-155.0,0.00033697,30]
[426608165,1782661843000,-153.0,0.00033697,30]
[426608167,1782661843000,-189.0,0.00033697,30]
[426608164,1782661843000,-1019.34,0.00033697,2]
[426608153,1782661843000,-1500.0,0.0003366,10]
[426608195,1782661843000,-229.36552854,0.00034399,30]
[426608190,1782661843000,-501.0,0.00034397,2]
[426608200,1782661843000,-310.0,0.000345,2]
[426608228,1782661843000,-501.0,0.00034877,2]
[426608232,1782661843000,-229.36552854,0.00035008,30]
[426608230,1782661843000,-3340.3272912,0.00034985,2]
[426608233,1782661843000,-159.47,0.0003508,30]
[426608234,1782661843000,-219.63501281,0.000351,120]
[426608237,1782661843000,-229.36552854,0.00035312,30]
[426608245,1782661843000,-543.19313053,0.000354,30]
[426608235,1782661843000,-623.73664059,0.000351,120]
[426608246,1782661843000,-543.19313052,0.000354,30]
[426608240,1782661843000,-400.0,0.0003537,2]
[426608243,1782661843000,-8931.1904913,0.000354,7]
[426608242,1782661843000,-500.0,0.00035399,2]
[426608227,1782661843000,-1588.0,0.00034876,5]
[426608241,1782661843000,-402.07792907,0.0003537,2]
[426608239,1782661843000,-299.07341176,0.0003536,2]
[426608244,1782661843000,-8931.1904913,0.000354,7]
[426608238,1782661843000,-501.0,0.00035357,3]
[426608249,1782661843000,-899.38117929,0.000354,30]
[426608252,1782661843000,-455.01,0.00035428,120]
[426608251,1782661843000,-150.42569425,0.00035413,28]
[426608254,1782661843000,-12483.42047721,0.00035455,90]
[426608248,1782661843000,-899.38117932,0.000354,30]
[426608247,1782661843000,-543.19313052,0.000354,30]
[426608250,1782661843000,-899.38117929,0.000354,30]
[426608255,1782661843000,-400.0,0.0003547,2]
[426608257,1782661843000,-174.74021101,0.00035484,14]
[426608236,1782661843000,-389.68965321,0.00035216,2]
[426608229,1782661843000,-1599.82,0.00034918,7]
[426608253,1782661843000,-100000.0,0.00035455,60]
[426608225,1782661843000,-180.5024506,0.00034853,2]
[426608231,1782661843000,-1500.0,0.00035007,10]
[426608208,1782661843000,-150.42569425,0.00034687,26]
[426608201,1782661843000,-322.0,0.000345,2]
[426608210,1782661843000,-315.0,0.00034695,30]
[426608205,1782661843000,-3650.0,0.00034586,2]
[426608209,1782661843000,-370.0,0.00034695,30]
[426608203,1782661843000,-649.345,0.00034586,2]
[426608202,1782661843000,-151.0,0.00034582,7]
[426608256,1782661843000,-500.0,0.0003547,2]
[426608204,1782661843000,-282.0,0.00034586,2]
[426608211,1782661843000,-389.68965324,0.00034695,2]
[426608207,1782661843000,-181.24037038,0.00034679,2]
[426608206,1782661843000,-695.34,0.0003464,7]
[426608199,1782661843000,-317.0,0.000345,2]
[426608223,1782661843000,-1500.0,0.00034795,2]
[426608213,1782661843000,-189.0,0.00034697,30]
[426608224,1782661843000,-2484.18,0.000348,30]
[426608218,1782661843000,-229.36552854,0.00034703,30]
[426608219,1782661843000,-500.0,0.00034769,2]
[426608221,1782661843000,-500.0,0.00034779,2]
[426608220,1782661843000,-210398.66367908,0.0003477,120]
[426608217,1782661843000,-156.0,0.00034699,30]
[426608212,1782661843000,-153.0,0.00034697,30]
[426608222,1782661843000,-275591.0,0.0003478,30]
[426608216,1782661843000,-2482.0,0.00034697,30]
[426608226,1782661843000,-1321.0,0.00034876,5]
[426608215,1782661843000,-153.0,0.00034697,30]
[426608214,1782661843000,-158.0,0.00034697,30]
[426608287,1782661844000,-159.21,0.00035663,7]
[426608284,1782661844000,-158.93,0.00035621,2]
[426608288,1782661844000,-3340.3272912,0.00035667,2]
[426608289,1782661844000,-325.37,0.00035672,120]
[426608291,1782661844000,-159.21,0.00035704,30]
[426608297,1782661844000,-389.68965321,0.00035737,2]
[426608298,1782661844000,-158.93,0.00035744,2]
[426608296,1782661844000,-1128.49654137,0.00035731,2]
[426608292,1782661844000,-1660.56,0.00035713,7]
[426608290,1782661844000,-158.93,0.00035703,30]
[426608301,1782661844000,-158.22,0.00035753,30]
[426608295,1782661844000,-1407.36,0.00035713,7]
[426608293,1782661844000,-1433.66,0.00035713,7]
[426608294,1782661844000,-1672.11,0.00035713,7]
[426608300,1782661844000,-4329.75,0.00035753,30]
[426608280,1782661844000,-229.36552854,0.00035616,30]
[426608302,1782661844000,-242.63207011,0.00035777,2]
[426608304,1782661844000,-159.21,0.00035786,7]
[426608305,1782661844000,-632.31521949,0.00035797,60]
[426608303,1782661844000,-158.93,0.00035785,7]